Cogmind - Beta 15 @@@ ROGUE MODE // 2025.07.11 @ 14:23:51 Player: Dingot Result: Destroyed by G-47 Trooper via exploding Fusion Modulator Performance ------------- Evolutions (2) 1000 Regions Visited (5) 1000 Robots Destroyed (41) 205 Value Destroyed (1061) 1061 Prototype IDs (28) 560 Alien Tech Used (0) 0 Bonus (300) 300 TOTAL SCORE: 4126 Bonus ------- Aligned with FarCom 300 Cogmind --------- Core Integrity 0/550 Matter 254/300 Energy 64/100 System Corruption 0% Temperature Cool (38) Movement Treading (240) Ox1 Location -8/Materials Parts ------- > --- POWER (1) -------- (None) > --- PROPULSION (4) --- Light Treads Light Treads > --- UTILITY (4) ------ High-capacity Storage Unit Transport Network Coupler > --- WEAPON (2) ------- Advanced Beam Rifle Minigun > --- INVENTORY (20) --- Improved Ion Engine Heavy Ion Engine Aluminum Leg VSS Leg VTOL Module Improved Flight Unit Improved Flight Unit Improved Flight Unit Xenon Bombardment Thruster Xenon Bombardment Thruster Xenon Bombardment Thruster Xenon Bombardment Thruster Heat Sink Hacking Suite Hacking Suite Beam Rifle Missile Launcher Longsword +1 Peak State ------------ > --- POWER ------------ (None) > --- PROPULSION ------- Light Treads Light Treads > --- UTILITY ---------- High-capacity Storage Unit Transport Network Coupler Light Armor Plating > --- WEAPON ----------- Minigun Longsword +1 > --- INVENTORY -------- Improved Ion Engine Heavy Ion Engine Aluminum Leg VSS Leg VTOL Module Improved Flight Unit Improved Flight Unit Improved Flight Unit Xenon Bombardment Thruster Xenon Bombardment Thruster Xenon Bombardment Thruster Xenon Bombardment Thruster Heat Sink Hacking Suite Hacking Suite Beam Rifle Advanced Beam Rifle Missile Launcher [Rating: 21] Favorites ----------- Power Light Ion Engine Engine Light Ion Engine Propulsion Light Treads Treads Light Treads Leg Aluminum Leg Flight Unit VTOL Module Utility Light Armor Plating Device Improved Terrain Scanner Storage High-capacity Storage Unit Processor Transport Network Coupler Protection Light Armor Plating Weapon Medium Laser Energy Gun Medium Laser Ballistic Gun Assault Rifle Launcher Missile Launcher Slashing Weapon Longsword +1 Build | -11 -10 -10 -10 -9 -8 ------- Run | Yrd Mat Min Exi Min Mat Slots Evolved 4 | . . . . . 4 Power . | . . . . . . Propulsion 2 | . . . . . 2 Utility 2 | . . . . . 2 Weapon . | . . . . . . Parts Attached 33 | 5 . 2 . . 26 Power 2 | 1 . . . . 1 Engine 2 | 1 . . . . 1 Core . | . . . . . . Reactor . | . . . . . . Propulsion 12 | 2 . . . . 10 Treads 7 | 2 . . . . 5 Leg 3 | . . . . . 3 Wheel . | . . . . . . Hover . | . . . . . . Flight 2 | . . . . . 2 Utility 6 | . . 2 . . 4 Device 1 | . . 1 . . . Storage 1 | . . . . . 1 Processor 1 | . . . . . 1 Hackware . | . . . . . . Protection 3 | . . 1 . . 2 Artifact . | . . . . . . Weapon 13 | 2 . . . . 11 Energy Gun 4 | 1 . . . . 3 Energy Cannon . | . . . . . . Ballistic Gun 7 | 1 . . . . 6 Ballistic Cannon . | . . . . . . Launcher 1 | . . . . . 1 Special Weapon . | . . . . . . Impact Weapon . | . . . . . . Slashing Weapon 1 | . . . . . 1 Piercing Weapon . | . . . . . . Special Melee Weapon . | . . . . . . Unidentified Prototypes 5 | . . . . . 5 Parts Lost 18 | . . . . . 18 Power 1 | . . . . . 1 Propulsion 6 | . . . . . 6 Utility 4 | . . . . . 4 Weapon 7 | . . . . . 7 Highest Loss Streak 6 | . . . . . 6 To Critical Strikes 1 | . . . . . 1 Average Backups 7 | 2 2 2 3 5 10 Power . | . . . . . 1 Propulsion 4 | 2 2 2 2 2 6 Utility . | . . . . 1 1 Weapon 1 | . . . 1 2 1 Tool/Special . | . . . . . . Unused Backups 12 | . . . . . 12 Power 1 | . . . . . 1 Propulsion 8 | . . . . . 8 Utility 3 | . . . . . 3 Weapon . | . . . . . . Tool/Special . | . . . . . . Average Slot Usage (%) 69 | . 71 90 100 100 54 Engine 7 | . 14 14 14 14 3 Treads 16 | . 28 28 28 28 9 Leg 2 | . . . . . 3 Device 4 | . . 5 14 14 1 Storage 5 | . . . . . 9 Processor 4 | . . . . . 7 Protection 7 | . . 14 14 14 4 Energy Gun 8 | . 14 14 14 14 5 Ballistic Gun 11 | . 14 14 14 14 9 Peak Build Rating 21 | 5 5 9 10 10 21 Average Rating 10 | 3 5 7 9 10 12 On Entrance 6 | . 5 5 9 10 10 Naked Turns . | . . . . . . Heaviest Build 52 | 7 7 11 11 11 52 Greatest Support 60 | 40 40 40 40 40 60 Greatest Overweight (x) 16 | 1 . . . . 16 Average Overweight (x) . | . . . . . 1 Largest Inventory Capacity 20 | 5 5 5 5 5 20 Average Capacity 14 | 5 5 5 5 5 20 Most Carried 18 | 5 3 4 5 5 18 Average Carried 7 | 2 2 2 3 5 10 Final Capacity 20 | 5 5 5 5 5 20 Final Carried 18 | 2 3 3 5 5 18 Class Distribution -------------------- 76% | Mutant 11% | Skirmisher 11% | Scavenger-Mutant Dominant Class ---------------- Mutant | -10/Materials Mutant | -10/Mines Mutant | -10/Exiles Skirmisher | -9/Mines Mutant | -8/Materials Resources | -11 -10 -10 -10 -9 -8 ----------- Run | Yrd Mat Min Exi Min Mat Matter Collected 1142 | 235 . 43 . 10 854 Remotely . | . . . . . . Salvage Created 1304 | . . 40 . . 1264 Parts 92 | . . 11 . . 81 Haulers Intercepted 6 | . . . . . 6 Recyclers Shooed . | . . . . . . Parts Field Recycled . | . . . . . . Retrieved Matter . | . . . . . . Parts Self-Destructed . | . . . . . . Prevented . | . . . . . . Kills | -11 -10 -10 -10 -9 -8 ------- Run | Yrd Mat Min Exi Min Mat Combat Hostiles Destroyed 29 | . . 3 . . 26 Guns 25 | . . 3 . . 22 AOE 4 | . . . . . 4 Classes Destroyed 10 | . . 2 . . 8 Worker 2 | . . . . . 2 Builder 1 | . . . . . 1 Tunneler 1 | . . 1 . . . Hauler 6 | . . . . . 6 Watcher 2 | . . . . . 2 Swarmer 11 | . . 3 . . 8 Grunt 7 | . . . . . 7 Brawler 1 | . . . . . 1 Sentry 7 | . . . . . 7 Hunter 3 | . . . . . 3 Best Kill Streak 7 | . . 3 . . 7 Combat Bots Only 4 | . . 3 . . 4 Max Kills in Single Turn 3 | . . 1 . . 3 Gunslinging . | . . . . . . Exploded 3 | . . . . . 3 Melee . | . . . . . . Uniques/NPCs Destroyed . | . . . . . . Combat | -11 -10 -10 -10 -9 -8 -------- Run | Yrd Mat Min Exi Min Mat Hostile Shots Fired 298 | . . 10 . . 288 Missed 95 | . . 1 . . 94 Hits 203 | . . 9 . . 194 Projectile 203 | . . 9 . . 194 AOE 1 | . . . . . 1 Critical Strikes 7 | . . . . . 7 Damage Taken 2755 | . . 77 . . 2678 Core 608 | . . 32 . . 576 Absorbed by Shields . | . . . . . . Core Remaining (%) 93 | 100 . . . 87 . Volleys Fired 149 | . . 6 . . 143 Largest 2 | . . 2 . . 2 Hottest 86 | . . 70 . . 86 Shots Fired 243 | . . 12 . . 231 Gun 240 | . . 12 . . 228 Cannon . | . . . . . . Launcher 3 | . . . . . 3 Special . | . . . . . . Kinetic 176 | . . 6 . . 170 Thermal 64 | . . 6 . . 58 Explosive 3 | . . . . . 3 Electromagnetic . | . . . . . . Robot Hit Streak 7 | . . 3 . . 7 Robot Miss Streak 6 | . . 4 . . 6 Penetration Max . | . . . . . . Secondary Targets 2 | . . . . . 2 Max Gunslinging Chain 1 | . . . . . 1 Shots Hit Robots 147 | . . 4 . . 143 Core Hits 71 | . . 3 . . 68 Critical Kills . | . . . . . . Critical Parts Destroyed 1 | . . . . . 1 Critical Strikes 2 | . . . . . 2 Burn 1 | . . . . . 1 Destroy 1 | . . . . . 1 Melee Attacks . | . . . . . . Impact . | . . . . . . Slashing . | . . . . . . Piercing . | . . . . . . Sneak Attacks . | . . . . . . Combat Hostiles . | . . . . . . Follow-up Attacks . | . . . . . . Damage Inflicted 2826 | . . 56 . . 2770 Guns 2313 | . . 48 . . 2265 Cannons . | . . . . . . Explosions 505 | . . . . . 505 Melee . | . . . . . . Ramming 8 | . . 8 . . . Kinetic 1854 | . . 24 . . 1830 Thermal 459 | . . 24 . . 435 Explosive 505 | . . . . . 505 Electromagnetic . | . . . . . . Impact . | . . . . . . Slashing . | . . . . . . Piercing . | . . . . . . Highest Corruption . | . . . . . . Average Corruption . | . . . . . . Corruption Purged . | . . . . . . Corruption Blocked . | . . . . . . Overload Shots . | . . . . . . Overflow Damage 46 | . . . . . 46 Projectiles . | . . . . . . Explosions 46 | . . . . . 46 Melee . | . . . . . . Knockbacks . | . . . . . . Impact . | . . . . . . Kinetic . | . . . . . . Secondary . | . . . . . . Self-Inflicted Damage 41 | . . . . . 41 Shots 1 | . . . . . 1 Rammed 1 | . . 1 . . . Targets Rammed 2 | . . 2 . . . Kicked . | . . . . . . Crushed 1 | . . 1 . . . Highest Temperature 108 | . . 108 . . 57 Average Temperature 23 | . . 56 . . 16 Received Heat Transfer 858 | . . . . . 858 Siege Activations . | . . . . . . Martial Activations . | . . . . . . Shielding Activations . | . . . . . . Robots Disrupted . | . . . . . . Combat Hostiles . | . . . . . . Robots Corrupted . | . . . . . . Combat Hostiles . | . . . . . . Parts Fried . | . . . . . . Impact Corruptions . | . . . . . . Robots Melted . | . . . . . . Combat Hostiles . | . . . . . . Parts Melted 1 | . . . . . 1 Heat Transferred 1258 | . . 74 . . 1184 Parts Sabotaged . | . . . . . . Parts Stolen . | . . . . . . Parts Stripped . | . . . . . . Power Chain Reactions . | . . . . . . Alert | -11 -10 -10 -10 -9 -8 ------- Run | Yrd Mat Min Exi Min Mat Maximum Alert Level . | . . . . . . Low Security (%) 100 | 100 100 100 . 100 100 Level 1 . | . . . . . . Level 2 . | . . . . . . Level 3 . | . . . . . . Level 4 . | . . . . . . Level 5 . | . . . . . . High Security . | . . . . . . Max Security . | . . . . . . Peak Influence 195 | . . 70 . . 195 Initial . | . . . . . . Average 41 | . . 12 . . 52 Influence Increases 951 | . . 75 . . 876 Destroy 0b10 Robot/C 580 | . . 60 . . 520 Destroy 0b10 Robot/NC 60 | . . 5 . . 55 Destroy Leader 156 | . . 10 . . 146 Successful Hack 27 | . . . . . 27 Disable Machine 45 | . . . . . 45 Destroy Structure 38 | . . . . . 38 Lose Combat Pursuer 45 | . . . . . 45 Influence Decreases 774 | . . 75 . . 699 Time Decay 632 | . . 75 . . 557 Lost Part 142 | . . . . . 142 Squads Dispatched 1 | . . . . . 1 Investigation . | . . . . . . Extermination . | . . . . . . Reinforcement 1 | . . . . . 1 Assault . | . . . . . . Garrison . | . . . . . . Intercept . | . . . . . . Searches Triggered . | . . . . . . Construction Impeded . | . . . . . . Haulers Reinforced . | . . . . . . Active Scanning Responses . | . . . . . . Cargo Convoy Interrupts . | . . . . . . Stealth | -11 -10 -10 -10 -9 -8 --------- Run | Yrd Mat Min Exi Min Mat Distress Signals 6 | . . . . . 6 Communications Jammed . | . . . . . . Distress Signals . | . . . . . . Times Spotted 58 | . 3 3 . . 52 Peak Tracking Total 6 | . 2 3 . . 6 Tactical Retreats 3 | . . . . . 3 Traps | -11 -10 -10 -10 -9 -8 ------- Run | Yrd Mat Min Exi Min Mat Traps Triggered . | . . . . . . Indirectly . | . . . . . . Trap Hack Attempts . | . . . . . . Triggered . | . . . . . . Disarmed . | . . . . . . Reprogrammed . | . . . . . . Reused . | . . . . . . Traps Extracted . | . . . . . . Installed . | . . . . . . Triggered . | . . . . . . Machines | -11 -10 -10 -10 -9 -8 ---------- Run | Yrd Mat Min Exi Min Mat Machines Disabled 3 | . . . . . 3 Max in Single Turn 1 | . . . . . 1 Garrison Access 1 | . . . . . 1 Machines Repaired . | . . . . . . Machines Dismantled . | . . . . . . Machines Sabotaged . | . . . . . . Overloaded Fab Kills . | . . . . . . Hacking | -11 -10 -10 -10 -9 -8 --------- Run | Yrd Mat Min Exi Min Mat Machines Accessed 8 | . . . 2 . 6 Terminals 5 | . . . . . 5 Fabricators . | . . . . . . Repair Stations . | . . . . . . Recycling Units . | . . . . . . Scanalyzers . | . . . . . . Garrison Access 1 | . . . . . 1 Total Hacks 18 | . . . 4 . 14 Successful 11 | . . . 4 . 7 Failed 7 | . . . . . 7 Catastrophic 3 | . . . . . 3 Database Lockouts . | . . . . . . Manual 8 | . . . 1 . 7 Terminals 13 | . . . . . 13 Fabricators . | . . . . . . Repair Stations . | . . . . . . Recycling Units . | . . . . . . Scanalyzers . | . . . . . . Garrison Access 1 | . . . . . 1 Terminal Hacks 10 | . . . 4 . 6 Record 3 | . . . 3 . . Level Access Points 1 | . . . . . 1 Alert Level 1 | . . . . . 1 Hauler Manifests 2 | . . . . . 2 Registered Components 1 | . . . . . 1 Zone Layout 1 | . . . . . 1 Proto ID Catalog 1 | . . . 1 . . Fabricator Hacks . | . . . . . . Repair Station Hacks . | . . . . . . Recycling Unit Hacks . | . . . . . . Scanalyzer . | . . . . . . Garrison Access Hacks 1 | . . . . . 1 Seal Access 1 | . . . . . 1 Unauthorized Hacks . | . . . . . . Terminals . | . . . . . . Fabricators . | . . . . . . Repair Stations . | . . . . . . Recycling Units . | . . . . . . Scanalyzers . | . . . . . . Garrison Access . | . . . . . . Data Cores Recovered . | . . . . . . Used . | . . . . . . Hacking Detections 2 | . . . . . 2 Full Trace Events . | . . . . . . Feedback Events . | . . . . . . Feedback Blocked . | . . . . . . Robot Schematics Acquired . | . . . . . . Robots Built . | . . . . . . Authchips . | . . . . . . Time . | . . . . . . Total Robot Build Rating . | . . . . . . Part Schematics Acquired . | . . . . . . Parts Built . | . . . . . . Authchips . | . . . . . . Time . | . . . . . . Total Part Build Rating . | . . . . . . Parts Repaired . | . . . . . . Time . | . . . . . . Parts Recycled . | . . . . . . Recycled Matter . | . . . . . . Retrieved Matter . | . . . . . . Retrieved Components . | . . . . . . Parts Scanalyzed . | . . . . . . Part Schematics Acquired . | . . . . . . Parts Damaged . | . . . . . . Bothacking | -11 -10 -10 -10 -9 -8 ------------ Run | Yrd Mat Min Exi Min Mat Used RIF Installer . | . . . . . . Robots Hacked . | . . . . . . Non-combat . | . . . . . . Combat . | . . . . . . Robot Hacks Applied . | . . . . . . Relay Couplers Released . | . . . . . . Fabnet Peak Effective % . | . . . . . . Robots Rewired . | . . . . . . Allies Hacked . | . . . . . . Hacks Repelled . | . . . . . . Allies | -11 -10 -10 -10 -9 -8 -------- Run | Yrd Mat Min Exi Min Mat Total Allies . | . . . . . . Largest Group . | . . . . . . Highest-Rated Group . | . . . . . . Highest-Rated Ally . | . . . . . . Total Orders . | . . . . . . Ally Attacks . | . . . . . . Total Damage . | . . . . . . Kills . | . . . . . . Allies Corrupted . | . . . . . . Allies Melted . | . . . . . . Intel | -11 -10 -10 -10 -9 -8 ------- Run | Yrd Mat Min Exi Min Mat Active Infowar (turns) 3037 | . . 147 753 66 2071 Terrain 1349 | . . 147 753 66 383 T.N.C. 1688 | . . . . . 1688 Robot Analysis Total . | . . . . . . Derelict Logs Recovered 2 | . . 1 . 1 . Drone Launches . | . . . . . . Drone Recoveries . | . . . . . . Exploration | -11 -10 -10 -10 -9 -8 ------------- Run | Yrd Mat Min Exi Min Mat Turns Passed 3541 | 60 136 372 753 66 2154 Spaces Moved 1490 | 47 85 216 470 42 630 Core 33 | 26 . . . . 7 Treads 1308 | 21 85 216 470 42 474 Legs 149 | . . . . . 149 Wheels . | . . . . . . Hover . | . . . . . . Flight . | . . . . . . Fastest Speed 50 | 50 160 160 160 160 160 Average Speed 206 | 107 160 160 160 160 273 Slowest Speed 850 | 160 160 160 160 160 850 Overloaded Moves . | . . . . . . Propulsion Burnouts . | . . . . . . Robots Hopped . | . . . . . . Potential Cave-ins . | . . . . . . Cave-ins Triggered . | . . . . . . Exploration Rate (%) 35 | 4 16 54 74 14 53 Regions Visited 5 Branch Regions 3 Pre-discovered Areas 2 | . . 1 1 . . Known Exits Taken . | . . . . . . Unknown Exits Taken 5 | 1 1 1 1 1 . Scrap Searched 2 | . . 1 . 1 . Spaces Dug . | . . . . . . Terrain Destroyed 37 | . . . . . 37 Melee . | . . . . . . Projectile 1 | . . . . . 1 AOE 36 | . . . . . 36 Terrain Rammed . | . . . . . . Walls Destroyed . | . . . . . . Machines Disabled . | . . . . . . Actions | -11 -10 -10 -10 -9 -8 --------- Run | Yrd Mat Min Exi Min Mat Total 1737 | 56 85 229 471 41 855 Wait 14 | . . 2 . . 12 Move 1485 | 46 84 215 469 41 630 Hop . | . . . . . . Pick Up 43 | 5 1 2 2 . 33 Fast Attach 2 | 2 . . . . . Attach 27 | 3 . 2 . . 22 Detach 2 | . . . . . 2 Swap 10 | . . . . . 10 Drop 3 | . . . . . 3 Fire 149 | . . 6 . . 143 Melee . | . . . . . . Ram . | . . . . . . Kick . | . . . . . . Crush 2 | . . 2 . . . Escape Stasis . | . . . . . . Rewire . | . . . . . . Trap . | . . . . . . Miscellaneous . | . . . . . . Route ------- -11/Scrapyard -10/Materials -10/Mines (discovered 2 exits: [*Mat] / *Exi) -10/Exiles -9/Mines -8/Materials (discovered 3 exits: Fac x3) History --------- Turn | Location | Event 7 | -11/Scrapyard | Discovered new exit (range 16) 61 | -11/Scrapyard | Entered Materials 62 | -10/Materials | Met a group of wandering Federalists 141 | -10/Materials | Discovered new exit (range 8) 197 | -10/Materials | Entered Mines 198 | -10/Mines | Assembled infested the area 203 | -10/Mines | Assisted by a Guerilla fighting off Assembled 307 | -10/Mines | Discovered new exit (range 10) 313 | -10/Mines | Build established: Mutant 362 | -10/Mines | Learned location of Zion (-6) 562 | -10/Mines | Deemed a non-threat by the Exiles lab entrance 562 | -10/Mines | Discovered new exit (range 5) 569 | -10/Mines | Entered Exiles 609 | -10/Exiles | Met 8R-AWN 635 | -10/Exiles | Met EX-HEX 712 | -10/Exiles | Met EX-DEC 775 | -10/Exiles | Visited The Gauntlet 917 | -10/Exiles | Met EX-BIN 941 | -10/Exiles | Aligned with FarCom system 942 | -10/Exiles | Given EX-Vault access code 979 | -10/Exiles | Opened EX-Vault 992 | -10/Exiles | Found Longsword +1 1023 | -10/Exiles | Warned to stay clear of 0b10 Research branches 1309 | -10/Exiles | Discovered new exit (range 10) 1322 | -10/Exiles | Left Exiles lab with Longsword +1 1322 | -10/Exiles | Entered Mines 1377 | -9/Mines | Discovered new exit (range 7) 1388 | -9/Mines | Entered Materials 1388 | -8/Materials | Evolved 4 slots: Propulsion x2, Utility x2 1635 | -8/Materials | Build established: Skirmisher 2065 | -8/Materials | Build established: Mutant 2186 | -8/Materials | Lost 6 parts (1p1n4w) 2194 | -8/Materials | Core integrity fell below 50% 2675 | -8/Materials | Lost 3 parts (2n1w) 3100 | -8/Materials | Core integrity fell below 20% 3209 | -8/Materials | Identified exit to Factory 3409 | -8/Materials | Build established: Scavenger-Mutant 3542 | -8/Materials | Destroyed by G-47 Trooper via exploding Fusion Modulator Last Messages --------------- 03420_ Acquired Missile Launcher. 03440_ W-25 Informer sends out distress signal. 03444_ C-30 ARC bursts open, deploying its payload. 03444_ S-10 Pest unfolds itself. 03445_ K-01 Serf collects debris. 03445_ K-01 Serf destroyed. 03445_ U-05 Engineer destroyed. 03447_ Destroyed Flight Unit. 03447_ S-10 Pest destroyed. 03450_ K-01 Serf destroyed. 03450_ S-10 Pest destroyed. 03460_ The unstable cave ceiling collapses. 03464_ Acquired 78 matter. 03477_ The unstable cave ceiling collapses. 03488_ K-01 Serf collects debris. 03491_ The unstable cave ceiling collapses. 03491_ K-01 Serf collects debris. 03528_ Lgt. Armor Plating destroyed. 03542_ Fusion Modulator explodes. Map ----- +----------------------------------------------------+ | ?????????# """ """ #[!= !!! ##?## #??????# | | ??????#??# """ """ #[ # !!! ###?? ???????# | | ????#????# """ """ #[[[# #???? #??????? | | ????????## # %# ###?? ???????? | | ?????#???# # # ! % #???? ???????? | | ?????????# ] ########?#?? ???????? | | ???????### "T" =* ############ #?#????? | | ???????########### [*[ % #?#????? | | ?????????#??#????# % ##############?????#? | | ???"S?? ???????### = ########????????????? | | ??????????#?#?### # ] #???#?#??????? | | ??? ??? ?#?????### """ #???#????????? | | ????? ????#????#?## % """ #?#??#???????? | | ?????????? ????#### # """ #????????????? | | ????????# #### + #????#???????? | | ?????"??# # """ #????????????? | | ????????+ ##### ## """ ###########??? | | ????????# ??? ?#??# ##?""" ## #??? | | ????????#???????????# #?? ## #??? | | ?????????????????#??# ##?#####?#?# #??? | | ??????????????#?#??## ###????????# #??? | | ????????????????#???# ##?#???????# #??? | | ??????????????????#?# #????????#?# ] #??? | | ??????????????#######+##???=?????# ! #??? | | ??????????????# #?????????? #??? | | ??????????????# @ #???????????? ????? | | ??????????????# #???????#######+####### | | ??????????????# #???????# | | ??????????????# #???????+ | | ??????????????# !== #???????# | | ??????????????# !== #???????# ###+####### | | ??????????????# === #???????# # *= #? | | ??????????# ??# #???????# # !!! #? | | ??????????# #####g############ ] # !!] #? | | ??????????# g ]] # !!] #? | | ??????????# # = #? | | ??????????# # * [ #? | | ??????????###+####k ############### ## | | ?????????????????#u #?????????????# [ ## | | ?????????????????# #?????????????# = + | | ?????????????????# #?????????????########### | | ?????????????????# #???????????????????????? | | ?????????????????# #???????????????????????? | | ?????????????????# #???????????????????????? | | ?????????????????+ +???????????????????????? | | ?????????????????# #???????????????????????? | | ?????????????????# #???????????????????????? | | ?????????????????# #???????????????????????? | | ????????????????? #???????????????????????? | | ?????????????????? #???????????????????????? | +----------------------------------------------------+ Best States ------------- Heat Dissipation 31 Energy Generation 10 Energy Capacity 125 Matter Stores 300 Matter Capacity 300 Sight Range 16 Terrain Scan Range 16 Terrain Scan Density 10 Armor Coverage 150 Evasion (%) 50 Recoil Reduction 3 Item Schematics ----------------- None Robot Schematics ------------------ None Fabricated ------------ Nothing Repaired ---------- Nothing Alien Tech Used ----------------- None Achievements -------------- None Challenges ------------ None Game ------ Seed HeartLightpackFlakker Manual? 0 Play Time 00:27:07 Cumulative 19.7 hours Start 2025.07.11 @ 13:55:49 End 2025.07.11 @ 14:23:51 Sessions 1 Manual Loads 0 Difficulty Rogue Special Mode None Game No. 31 Rogue 31 Adventurer 0 Explorer 0 Win Type - Total 0 Types 0/0/0/0/0/0/0/0/0/0 Lore% 17 Gallery% 18 Achievement% 25 Wizard Run 0 Options --------- Layout 1 ASCII 0 Keyboard 0 Movement Mouse Keybinds 0 Fullscreen 1 Font 24/Smallcaps Map View 50x35 Zoom Use 0% Tactical HUD 1 Map Filters NONE Filters NONE Steam 1 RUN: 32bc6ad0-bd26-4adc-bafd-21f295650398